bitfinex/quotes_ETHUSD_20241212
["timestamp","ask_amount","ask_price","bid_price","bid_amount"]
[1733996562885,1.099488,3917.7,3917.1,0.45477774]
[1733996563086,0.7675,3917.7,3917.1,0.45477774]
[1733996564503,0.23859101,3917.6,3917.1,0.45477774]
[1733996564696,0.7675,3917.7,3917.1,0.45477774]
[1733996564923,0.23859732,3917.6,3917.1,0.45477774]
[1733996565105,0.7675,3917.7,3917.1,0.45477774]
[1733996565315,0.23859853,3917.6,3917.1,0.45477774]
[1733996565483,0.7675,3917.7,3917.1,0.45477774]
[1733996565689,0.23865167,3917.6,3917.1,0.45477774]
[1733996566033,0.7675,3917.7,3917.1,0.45477774]
[1733996566328,0.23865052,3917.6,3917.1,0.45477774]
[1733996566528,0.7675,3917.7,3917.1,0.45477774]
[1733996566829,0.23869345,3917.6,3917.1,0.45477774]
[1733996567002,0.7675,3917.7,3917.1,0.45477774]
[1733996567203,0.23869351,3917.6,3917.1,0.45477774]
[1733996567401,0.23869351,3917.5,3917.1,0.45477774]
[1733996567702,0.7675,3917.7,3917.1,0.45477774]
[1733996567902,0.23876657,3917.6,3917.1,0.45477774]
[1733996568118,0.7675,3917.7,3917.1,0.45477774]
[1733996568315,0.23876638,3917.6,3917.1,0.45477774]
[1733996568619,0.23876638,3917.5,3917.1,0.45477774]
[1733996568813,0.7675,3917.7,3917.1,0.45477774]
[1733996568814,0.7675,3917.7,3917.1,3.82377774]
[1733996569128,0.7675,3917.7,3917.2,2.55281]
[1733996569327,0.7675,3917.7,3917.1,1.27087774]
[1733996569543,0.23890988,3917.6,3917.1,0.45477774]
[1733996569690,0.7675,3917.7,3917.1,0.45477774]
[1733996569892,0.23891027,3917.6,3917.1,0.45477774]
[1733996570235,0.7675,3917.7,3917.1,0.45477774]
[1733996570403,0.23892822,3917.6,3917.1,0.45477774]
[1733996570734,0.7675,3917.7,3917.1,0.45477774]
[1733996571491,1.099484,3917.7,3917.1,0.40477774]
[1733996572415,0.23896396,3917.6,3917.1,0.40477774]
[1733996572730,1.099484,3917.7,3917.1,0.40477774]
[1733996572906,0.23896491,3917.6,3917.1,0.40477774]
[1733996573231,0.13384489,3917.6,3917.1,0.40477774]
[1733996576241,0.13384489,3917.6,3917.2,0.86282421]
[1733996577646,0.7675,3917.7,3917.4,2.5527]
[1733996577844,0.8332,3918.5,3917.6,1.33038589]
[1733996578032,0.8332,3918.5,3918.0,1.33038589]
[1733996578342,0.23893516,3918.4,3918.0,3.88269589]
[1733996578527,0.23893516,3918.3,3918.0,4.63649589]
[1733996578717,0.8332,3918.5,3918.0,4.63649589]
[1733996578912,0.23883511,3918.4,3918.0,2.08418589]
[1733996579148,0.8332,3918.5,3918.1,0.86302051]
[1733996579344,0.23883831,3918.4,3918.0,2.08418589]
[1733996579546,0.8332,3918.5,3918.1,0.86303204]
[1733996581168,0.2387498,3918.4,3918.1,0.86303204]
[1733996581460,0.8332,3918.5,3918.1,0.86303204]
[1733996582575,0.8332,3918.5,3918.0,2.08418589]
[1733996582788,0.8332,3918.5,3918.1,0.86347507]
[1733996583153,0.23861664,3918.4,3918.1,0.86347507]
[1733996583350,0.8332,3918.5,3918.1,0.86347507]
[1733996583556,0.23861787,3918.4,3918.0,0.7538]
[1733996583758,0.8332,3918.5,3918.0,0.7538]
[1733996584074,0.23861774,3918.4,3918.0,0.7538]
[1733996584273,0.8332,3918.5,3918.1,0.86373959]
[1733996585599,0.8332,3918.5,3918.0,0.7538]
[1733996585891,0.8332,3918.5,3917.8,3.6186894]
[1733996585892,2.55183,3918.8,3918.1,0.8637149]
[1733996586196,2.55183,3918.8,3918.2,0.86387469]
[1733996586197,0.23855488,3918.7,3918.2,0.86387469]
[1733996586360,2.55169,3919.0,3918.0,1.0662494]
[1733996586543,0.23850198,3918.9,3918.0,3.2257345]
[1733996586744,0.23850198,3918.8,3918.1,2.15916457]
[1733996586993,0.23850198,3918.7,3918.2,0.86366583]
[1733996587205,0.2790192,3918.9,3918.0,1.0662494]
[1733996587343,0.23847217,3918.8,3918.0,3.22530813]
[1733996587545,0.23847217,3918.7,3918.1,0.86362349]
[1733996587850,0.23847217,3918.6,3917.9,3.6186094]
[1733996588045,0.2790192,3918.9,3918.0,2.15906595]
[1733996588392,0.23847924,3918.8,3918.1,0.86362638]
[1733996588599,2.79034924,3918.7,3917.8,1.0662494]
[1733996588744,0.23847924,3918.6,3917.8,3.22510793]
[1733996588946,2.55187,3918.7,3917.9,2.15885853]
[1733996589140,0.23846061,3918.6,3918.0,2.15885853]
[1733996589343,0.255187,3918.7,3918.1,0.86354341]
[1733996589587,0.23844484,3918.6,3917.8,3.6186794]
[1733996589744,0.255187,3918.7,3917.9,2.15877653]
[1733996589945,3.62084438,3919.2,3917.7,1.82997513]
[1733996589946,0.23844568,3918.6,3917.7,1.0662494]
[1733996590184,2.55219,3918.2,3917.5,1.0662494]
[1733996590396,2.55219,3918.2,3917.6,0.86375244]
[1733996590558,2.807409,3918.2,3917.4,1.0662494]
[1733996590760,0.23848719,3918.1,3917.5,1.29578966]
[1733996590955,2.807409,3918.2,3917.2,4.94947529]
[1733996591157,0.23848722,3918.1,3917.3,3.22612025]
[1733996591375,0.23850628,3918.0,3917.4,2.15987085]
[1733996591608,2.807409,3918.2,3917.5,0.86394834]
[1733996591773,0.23850535,3918.1,3917.2,4.94947529]
[1733996591982,0.23850535,3918.0,3917.3,2.1599884]
[1733996592162,2.807409,3918.2,3917.4,2.1599884]
[1733996592362,0.51926197,3918.1,3917.5,0.86399536]
[1733996592675,0.51926197,3918.1,3917.4,0.51048629]
[1733996592676,0.23852107,3918.0,3917.4,0.51048629]
[1733996592863,2.55219,3918.2,3917.5,0.86400629]
[1733996593061,0.23852048,3918.1,3917.4,0.51048629]
[1733996593263,0.7617,3917.9,3917.4,0.51048629]
[1733996595365,0.7617,3917.9,3917.3,0.51861565]
[1733996595569,2.5527,3917.5,3917.3,0.51861565]
[1733996595768,0.99340128,3917.4,3917.3,0.51861565]
[1733996596086,0.7548,3917.4,3917.3,0.51861565]
[1733996596613,0.7548,3917.4,3916.7,1.0662494]
[1733996596771,0.7548,3917.4,3916.8,1.29619107]
[1733996596971,0.7548,3917.4,3916.9,2.16031845]
[1733996597173,0.7548,3917.4,3917.0,0.86412738]
[1733996597483,0.7548,3917.4,3916.7,1.0662494]
[1733996597794,0.7548,3917.4,3916.8,1.29614649]
[1733996597999,0.7548,3917.4,3916.9,2.16024415]
[1733996598211,0.7548,3917.4,3916.7,1.0662494]
[1733996598396,0.7548,3917.4,3916.8,1.2960997]
[1733996598707,0.7548,3917.4,3916.9,2.16016617]
[1733996598913,0.7548,3917.4,3917.0,0.86406647]
[1733996599122,0.7548,3917.4,3916.7,1.0662494]
[1733996599279,0.7548,3917.4,3916.8,1.29598293]
[1733996599473,0.7548,3917.4,3917.2,0.49861198]
[1733996610110,0.7893,3917.8,3917.2,4.38183787]
[1733996612381,0.23840357,3917.7,3917.2,4.38183787]
[1733996612578,0.7893,3917.8,3917.2,4.38183787]
[1733996613057,0.7893,3917.8,3917.2,1.82899787]
[1733996613262,0.7881,3918.1,3917.3,2.55274]
[1733996613437,0.5857531,3918.0,3917.3,2.55274]
[1733996613637,0.23842524,3917.9,3917.4,0.7609]
[1733996613882,0.7881,3918.1,3917.4,0.7609]
[1733996614189,0.23842115,3918.0,3917.4,0.7609]
[1733996614484,0.7881,3918.1,3917.4,3.31358]
[1733996614776,0.2384474,3918.0,3917.4,3.31358]
[1733996614981,0.2384474,3917.9,3917.4,3.31358]
[1733996615196,0.7881,3918.1,3917.4,3.31358]
[1733996615373,0.23848483,3918.0,3917.4,3.31358]
[1733996615540,0.23848483,3917.9,3917.4,0.7609]
[1733996615744,0.7881,3918.1,3917.4,0.7609]
[1733996615959,0.23848707,3918.0,3917.4,0.7609]
[1733996616177,0.7881,3918.1,3917.4,0.7609]
[1733996616493,0.23853027,3918.0,3917.4,0.7609]
[1733996616677,0.23853027,3917.9,3917.4,0.7609]
[1733996616842,0.7881,3918.1,3917.4,0.7609]
[1733996617045,0.2385422,3918.0,3917.4,0.7609]
[1733996617242,0.2385422,3917.9,3917.4,0.7609]
[1733996617444,0.7881,3918.1,3917.4,0.7609]
[1733996617648,0.23861668,3918.0,3917.2,4.38182787]
[1733996617847,0.23861668,3917.9,3917.2,4.38182787]
[1733996618108,0.23861668,3917.8,3917.3,0.86358046]
[1733996618263,0.23861668,3917.7,3917.2,4.38182787]
[1733996618457,0.334029,3918.0,3917.2,4.38182787]
[1733996618664,0.23868932,3917.9,3917.2,4.38182787]
[1733996618913,0.23868932,3917.8,3917.2,3.05144198]
[1733996619046,0.23868932,3917.7,3917.2,3.05144198]
[1733996619247,0.334029,3918.0,3917.2,3.05144198]
[1733996619448,0.23877537,3917.9,3917.3,0.86359199]
[1733996619702,0.23877537,3917.8,3917.3,0.86359199]
[1733996619992,0.23877205,3917.7,3917.2,3.05144198]
[1733996620297,0.7881,3918.1,3917.3,0.86358177]
[1733996620505,0.23881988,3918.0,3917.3,0.86358177]
[1733996620709,0.23881988,3917.9,3917.3,0.86358177]
[1733996621009,0.23881988,3917.8,3917.3,0.86358177]
[1733996621160,0.7881,3918.1,3917.4,3.3815]
[1733996621503,0.238818,3918.0,3917.4,0.8288]
[1733996621794,0.238818,3917.9,3917.4,0.8288]
[1733996621962,0.238818,3917.8,3917.4,0.8288]
[1733996622294,0.238818,3917.7,3917.4,0.8288]
[1733996622479,0.3579128,3918.0,3917.4,0.8288]
[1733996622887,0.23882728,3917.9,3917.4,0.8288]
[1733996623183,0.23882728,3917.8,3917.4,0.8288]
[1733996623362,0.23882728,3917.7,3917.4,0.8288]
[1733996623544,0.23882728,3917.6,3917.4,0.8288]
[1733996623745,0.3579128,3918.0,3917.4,0.8288]
[1733996624041,0.60865687,3917.9,3917.4,0.8288]
[1733996624240,0.23883459,3917.8,3917.4,0.8288]
[1733996624452,0.23883459,3917.7,3917.4,0.8288]
[1733996624658,0.7881,3918.1,3917.4,0.8288]
[1733996624659,0.23883459,3917.6,3917.4,0.8288]
[1733996624991,0.7881,3918.1,3917.4,0.8288]
[1733996625174,0.57286907,3918.0,3917.4,0.8288]
[1733996625376,0.23883807,3917.9,3917.4,0.8288]
[1733996625711,0.23883807,3917.8,3917.4,0.8288]
[1733996625873,0.7881,3918.1,3917.4,0.8288]
[1733996627093,0.23883515,3918.0,3917.4,0.8288]
[1733996627389,0.23883515,3917.9,3917.4,0.8288]
[1733996627559,0.23883515,3917.8,3917.4,0.8288]
[1733996627760,0.23883515,3917.7,3917.6,0.8235]
[1733996628091,2.13852876,3919.0,3918.0,0.8235]
[1733996628092,0.23880785,3918.4,3918.0,0.8235]
[1733996628292,0.23880785,3918.3,3918.1,1.33038589]
[1733996628453,2.55174,3918.9,3918.1,1.33038589]
[1733996628653,0.57595919,3918.8,3918.1,1.33038589]
[1733996628878,0.23873519,3918.7,3918.1,1.33038589]
[1733996629185,0.23873519,3918.6,3918.1,1.33038589]
[1733996629394,0.23873519,3918.5,3918.1,1.33038589]
[1733996629606,0.23873519,3918.4,3918.1,1.33038589]
[1733996629800,2.55174,3918.9,3918.1,1.33038589]
[1733996630108,1.06926438,3919.2,3918.1,1.33038589]
[1733996630109,0.337224,3918.8,3918.2,0.776]
[1733996630275,0.23866418,3918.7,3918.4,1.33038589]
[1733996630463,0.824,3919.3,3918.4,1.33038589]
[1733996630658,0.23855885,3919.2,3918.4,1.33038589]
[1733996630911,0.23855885,3919.1,3918.4,1.33038589]
[1733996631110,0.23855885,3919.0,3918.4,1.33038589]
[1733996631315,0.23855885,3918.9,3918.4,1.33038589]
[1733996631529,0.23855885,3918.8,3918.4,1.33038589]
[1733996631665,0.36139789,3919.1,3918.4,1.33038589]
[1733996632015,0.23847054,3919.0,3918.4,1.33038589]
[1733996632221,0.23847054,3918.9,3918.4,1.33038589]
[1733996632369,0.36139789,3919.1,3918.4,1.33038589]
[1733996632566,0.23840265,3919.0,3918.4,1.33038589]
[1733996632789,0.23840265,3918.9,3918.4,1.33038589]
[1733996632991,0.36139789,3919.1,3918.4,3.88243589]
[1733996633276,0.23840135,3919.0,3918.4,3.88243589]
[1733996633471,0.23840135,3918.9,3918.5,3.36528]
[1733996633671,0.824,3919.3,3918.7,1.33038589]
[1733996633878,0.23834859,3919.2,3918.7,1.33038589]
[1733996634126,0.23834859,3919.1,3918.7,1.33038589]
[1733996634335,0.23834859,3919.0,3918.7,1.33038589]
[1733996634626,2.55136,3919.5,3918.7,1.33038589]
[1733996634923,0.56903495,3919.4,3918.7,1.33038589]
[1733996635074,0.23829895,3919.3,3918.7,1.33038589]
[1733996635277,0.23829895,3919.2,3918.7,1.33038589]
[1733996635470,0.23829895,3919.1,3918.7,1.33038589]
[1733996635797,2.55142,3919.4,3918.7,1.33038589]
[1733996636004,0.23827217,3919.3,3918.7,1.33038589]
[1733996636320,0.23827217,3919.2,3918.7,1.33038589]
[1733996636532,0.23827217,3919.1,3918.5,0.8133]
[1733996636734,2.882162,3919.4,3918.5,2.14368589]
[1733996637056,0.23825112,3919.3,3918.5,2.14368589]
[1733996637339,0.55029243,3919.2,3918.5,2.14368589]
[1733996637550,0.23825112,3919.1,3918.5,2.14368589]
[1733996637696,0.31204131,3919.2,3918.5,2.14368589]
[1733996637899,0.23823513,3919.1,3918.5,2.14368589]
[1733996638144,0.31204131,3919.2,3918.5,2.14368589]
[1733996638309,0.23823628,3919.1,3918.5,2.14368589]
[1733996638517,0.23823628,3919.0,3918.5,2.14368589]
[1733996638716,0.23823628,3919.1,3918.5,2.14368589]
[1733996638913,0.31204131,3919.2,3918.5,2.14368589]
[1733996639111,0.23822987,3919.1,3918.5,2.14368589]
[1733996639338,0.23822987,3919.0,3918.5,2.14368589]
[1733996639494,2.55142,3919.4,3918.5,2.14368589]
[1733996639700,0.23823692,3919.3,3918.5,2.14368589]
[1733996640044,0.23823692,3919.2,3918.5,2.14368589]
[1733996640335,0.23823692,3919.1,3918.5,2.14368589]
[1733996640539,0.23823692,3919.0,3918.5,2.14368589]
[1733996640698,0.330742,3919.3,3918.5,2.14368589]
[1733996640902,0.23824465,3919.2,3918.5,2.14368589]
[1733996641143,0.23824465,3919.1,3918.5,2.14368589]
[1733996641450,0.23824465,3919.0,3918.5,2.14368589]
[1733996641744,0.330742,3919.3,3918.5,2.14368589]
[1733996641958,0.23823702,3919.2,3918.7,0.8256]
[1733996642096,3.30729,3919.6,3918.7,2.15598589]
[1733996642300,0.23822795,3919.5,3918.7,2.15598589]
[1733996642501,0.23822795,3919.4,3918.7,2.15598589]
[1733996642701,0.23822795,3919.3,3919.0,1.33038589]
[1733996642945,0.23819282,3919.8,3919.1,0.828]
[1733996643116,0.5942661,3919.7,3919.1,0.828]
[1733996643315,0.23819282,3919.6,3919.1,0.828]
[1733996643557,0.35607328,3919.7,3919.1,0.828]
[1733996643722,0.2381345,3919.6,3919.1,0.828]
[1733996644049,0.23813447,3919.6,3919.1,0.828]
[1733996644247,0.7715,3919.9,3919.1,0.828]
[1733996644457,2.78924901,3919.8,3919.1,0.828]
[1733996644660,0.7626,3920.4,3919.4,0.759]
[1733996644942,0.23806752,3920.3,3919.4,0.759]
[1733996645259,0.23806752,3920.2,3919.4,0.759]
[1733996645553,0.2379848,3920.2,3919.4,0.759]
[1733996646515,0.7626,3920.4,3919.4,0.759]
[1733996646696,0.23790936,3920.3,3919.7,2.5512]
[1733996646895,0.23790936,3920.6,3919.7,0.7873]
[1733996647439,0.84023885,3920.7,3919.8,2.55109]
[1733996647736,0.41707889,3920.6,3919.9,2.55107]
[1733996648038,0.7801,3920.8,3919.9,2.55107]
[1733996648442,1.01800936,3920.8,3919.9,2.55107]
[1733996648806,0.7801,3920.8,3920.0,2.551]
[1733996649231,0.7801,3920.8,3920.1,3.31315]
[1733996650107,0.55,3921.0,3920.2,2.55088]
[1733996650308,0.16050227,3920.9,3920.2,2.55088]
[1733996651012,0.16050227,3920.9,3920.4,2.55074]
[1733996651523,0.16050227,3920.9,3920.3,2.55082]
[1733996651722,0.16050227,3920.9,3920.4,2.55075]
[1733996652010,0.16050227,3920.9,3920.5,3.88106589]
[1733996652350,0.8173,3921.1,3920.7,2.55056]
[1733996652503,0.8127,3921.4,3920.8,3.88083589]
[1733996653442,0.8127,3921.4,3920.5,1.33038589]
[1733996653643,0.8127,3921.4,3920.9,2.55042]
[1733996655091,0.55,3921.8,3921.0,2.55035]
[1733996655238,0.21975426,3921.9,3921.0,2.55034]
[1733996655895,1.01406921,3922.1,3921.0,2.55034]
[1733996655896,0.55,3922.0,3921.0,2.55034]
[1733996656040,0.55,3922.0,3921.0,2.55036]
[1733996657280,0.78723235,3922.0,3920.8,2.08198589]
[1733996657476,0.15637324,3921.9,3921.0,2.55035]
[1733996658181,0.15637324,3921.9,3921.1,2.55029]
[1733996659070,0.15637324,3921.9,3921.3,2.55016]
[1733996659270,0.7765,3922.1,3921.3,2.55016]
[1733996659655,0.7765,3922.1,3921.4,2.55006]
[1733996660541,0.7765,3922.1,3921.3,0.8103]
[1733996660827,0.7765,3922.1,3921.7,1.33038589]
[1733996660943,1.33038589,3923.2,3921.7,1.33038589]
[1733996660944,0.822,3922.6,3921.7,1.33038589]
[1733996661284,0.822,3922.6,3921.8,2.54983]
[1733996661468,0.822,3922.6,3921.7,1.33038589]
[1733996661469,0.822,3922.6,3921.9,2.54976]
[1733996665892,0.822,3922.6,3921.7,1.33038589]
[1733996666092,0.822,3922.6,3922.0,1.33038589]
[1733996666496,0.822,3922.6,3922.2,2.54958]
[1733996666697,0.55,3923.2,3922.2,2.54958]
[1733996666858,0.15656489,3923.1,3922.2,2.54958]
[1733996667258,0.15656489,3923.1,3922.3,3.87985589]
[1733996670499,0.15656489,3923.1,3922.3,1.33038589]
[1733996670696,0.7797,3923.0,3922.3,1.33038589]
[1733996672510,0.7797,3923.0,3922.3,3.87989589]
[1733996674217,0.23695619,3922.9,3922.3,3.87989589]
[1733996674708,0.23721167,3922.9,3922.3,3.87989589]
[1733996675039,0.7797,3923.0,3922.3,3.87989589]
[1733996675238,0.23728453,3922.9,3922.3,3.87989589]
[1733996675744,0.23728453,3922.9,3922.3,1.33038589]
[1733996675913,0.23728453,3922.9,3922.4,2.54945]
[1733996676331,0.7797,3923.0,3922.4,2.54945]
[1733996676509,0.23736542,3922.9,3922.4,2.54945]
[1733996676705,0.23736542,3922.8,3922.6,1.33038589]
[1733996676906,0.7535,3923.5,3923.0,2.54905]
[1733996677122,0.23735033,3923.4,3923.0,2.54905]
[1733996677434,0.23735033,3923.3,3923.0,2.54905]
[1733996677629,0.7535,3923.5,3923.0,2.54905]
[1733996677830,0.2373792,3923.4,3923.0,2.54905]
[1733996678031,0.7535,3923.5,3923.0,2.54905]
[1733996678348,0.23740863,3923.4,3923.0,2.54905]
[1733996678846,0.7535,3923.5,3923.1,2.54899]
[1733996680048,3.21231616,3924.9,3922.3,2.54951]
[1733996680049,0.8207,3924.3,3923.2,1.33038589]
[1733996680201,0.23744346,3924.2,3923.8,1.33038589]
[1733996680405,0.23744346,3924.1,3923.3,0.7599]
[1733996680631,0.23744346,3924.0,3923.6,1.33038589]
[1733996680839,0.8207,3924.3,3923.6,1.33038589]
[1733996681046,0.23742921,3924.2,3923.7,2.5486]
[1733996681203,0.23742921,3924.2,3923.6,1.33038589]
[1733996681204,0.23742921,3924.1,3923.6,1.33038589]
[1733996681411,0.8207,3924.3,3923.6,1.33038589]
[1733996681412,0.23742921,3924.0,3923.6,1.33038589]
[1733996681611,0.8207,3924.3,3923.6,3.87904589]
[1733996681825,0.23742189,3924.2,3923.6,3.87904589]
[1733996682025,0.23742189,3924.1,3923.6,3.87904589]
[1733996682225,0.8207,3924.3,3923.6,3.87904589]
[1733996682526,0.23743803,3924.2,3923.6,3.87904589]
[1733996682845,0.23743803,3924.1,3923.6,3.87904589]
[1733996683045,0.23743803,3924.0,3923.6,3.87904589]
[1733996683222,0.8207,3924.3,3923.7,2.5486]
[1733996683423,0.23742654,3924.2,3923.7,2.5486]
[1733996683625,0.23742654,3924.1,3923.7,2.5486]
[1733996683924,0.23742654,3924.0,3923.7,2.5486]
[1733996684126,0.8207,3924.3,3923.6,1.33038589]
[1733996684327,0.23742713,3924.2,3923.9,1.33038589]
[1733996684552,0.23742713,3924.1,3924.0,2.54841]
[1733996684708,0.23742713,3924.5,3924.0,2.54841]
[1733996685055,0.8191,3924.6,3924.1,2.54833]
[1733996685222,0.23737109,3924.5,3924.1,2.54833]
[1733996685405,0.8191,3924.6,3924.2,2.54828]
[1733996685606,1.33038589,3925.5,3924.2,2.54828]
[1733996685607,0.55,3925.4,3924.2,3.87866589]
[1733996685844,1.3116,3925.2,3924.2,3.87866589]
[1733996686035,0.55,3925.0,3924.2,3.87866589]
[1733996686233,0.23736022,3924.9,3924.2,3.87866589]
[1733996686437,0.23736022,3924.8,3924.2,3.87866589]
[1733996686650,0.23736022,3924.7,3924.3,2.54816]
[1733996686951,0.23730445,3925.1,3924.3,2.54816]
[1733996687115,0.23730445,3925.0,3924.2,1.33038589]
[1733996687318,0.23730445,3924.9,3924.4,2.54813]
[1733996687512,0.7616,3925.2,3924.5,1.33038589]
[1733996687763,0.23726515,3925.1,3924.5,1.33038589]
[1733996687941,0.23726515,3925.0,3924.5,1.33038589]
[1733996688112,0.7616,3925.2,3924.5,1.33038589]
[1733996688312,0.23726226,3925.1,3924.5,1.33038589]
[1733996688517,0.23723002,3925.0,3924.5,1.33038589]
[1733996688717,0.23723002,3924.9,3924.5,1.33038589]
[1733996688958,0.23723002,3925.1,3924.5,1.33038589]
[1733996689158,0.23723002,3925.0,3924.5,1.33038589]
[1733996689453,0.23721372,3924.9,3924.5,1.33038589]
[1733996689757,0.23721372,3925.1,3924.5,3.87846589]
[1733996690050,0.23721372,3925.0,3924.5,3.87846589]
[1733996690257,0.23721372,3925.1,3924.5,3.87846589]
[1733996690416,0.23721372,3925.0,3924.5,3.87846589]
[1733996690616,0.23721372,3925.1,3924.5,3.87846589]
[1733996690817,0.23721372,3925.0,3924.5,3.87846589]
[1733996691014,0.7616,3925.2,3924.5,3.87846589]
[1733996691015,0.23721372,3925.1,3924.5,3.87846589]
[1733996691260,0.23721372,3925.0,3924.5,3.87846589]
[1733996691463,0.7616,3925.2,3924.5,3.87846589]
[1733996691645,0.23714808,3925.1,3924.5,1.33038589]
[1733996691961,0.23714808,3925.0,3924.5,1.33038589]
[1733996692119,0.23714808,3925.1,3924.5,1.33038589]
[1733996692321,0.23714808,3925.0,3924.5,1.33038589]
[1733996692645,0.23714808,3925.1,3924.5,1.33038589]
[1733996693259,0.7531,3925.5,3924.9,0.8108]
[1733996693417,0.23714808,3925.4,3924.9,3.35862]
[1733996694525,0.7531,3925.5,3924.9,3.35862]
[1733996694717,0.7531,3925.5,3924.9,0.8108]
[1733996694922,0.23714808,3925.4,3924.9,0.8108]
[1733996695222,0.7531,3925.5,3924.9,0.8108]
[1733996695623,0.7531,3925.5,3925.1,1.33038589]
[1733996695957,0.94024808,3925.5,3925.1,1.33038589]
[1733996696162,0.7531,3925.5,3925.1,1.33038589]
[1733996697887,2.54707,3926.1,3925.1,1.33038589]
[1733996698084,3.3574,3925.9,3925.1,1.33038589]
[1733996699299,0.8102,3925.9,3925.1,1.33038589]
[1733996699602,2.54728,3925.8,3925.1,1.33038589]
[1733996700984,2.54732,3925.7,3925.1,1.33038589]
[1733996701187,3.3574,3925.9,3925.1,1.33038589]
[1733996703368,0.8102,3925.9,3925.4,1.33038589]
[1733996703601,2.54698,3926.3,3925.5,0.7634]
[1733996703800,2.54698,3926.3,3925.7,1.33038589]
[1733996705900,2.54699,3926.2,3925.7,1.33038589]
[1733996706282,2.54699,3926.2,3925.5,0.7634]
[1733996707784,0.23753072,3926.1,3925.5,0.7634]
[1733996708103,0.23753072,3926.0,3925.5,0.7634]
[1733996708310,0.23753072,3925.9,3925.0,0.7633]
[1733996708510,2.54763,3925.3,3924.7,0.7633]
[1733996708671,0.23753072,3925.2,3924.7,0.7633]
[1733996708867,0.23753072,3925.1,3924.7,2.09368589]
[1733996709107,0.783,3925.7,3925.0,1.33038589]
[1733996711426,2.54719,3925.9,3925.1,0.766]
[1733996712966,3.3037,3926.4,3925.6,2.14038589]
[1733996713314,0.7568,3926.4,3925.6,2.14038589]
[1733996713532,1.33038589,3927.1,3925.9,1.33038589]
[1733996713533,0.7995,3927.1,3925.9,1.33038589]
[1733996713825,2.54667,3926.7,3925.9,1.33038589]
[1733996715156,0.7995,3927.1,3924.8,3.0]
[1733996715157,0.7995,3927.1,3926.2,2.08758589]
[1733996715368,2.54662,3926.8,3926.2,2.08758589]
[1733996717026,2.54673,3926.6,3926.2,2.08758589]
[1733996718157,2.54658,3926.9,3926.2,2.08758589]
[1733996718466,2.54662,3926.8,3926.2,2.08758589]
[1733996719160,3.09649,3927.0,3926.2,2.08758589]
[1733996719466,2.54655,3926.9,3926.2,2.08758589]
[1733996719978,0.55,3927.0,3926.2,2.08758589]
[1733996720195,2.5466,3926.8,3926.2,2.08758589]
[1733996724269,2.54674,3926.6,3926.2,0.7572]
[1733996727292,2.54659,3926.9,3926.2,0.7572]
[1733996727497,2.54647,3927.0,3926.2,0.7572]
[1733996727704,2.54661,3926.8,3926.2,0.7572]
[1733996728057,2.54661,3926.8,3926.2,2.08758589]
[1733996731706,2.54683,3926.5,3926.2,0.7572]
[1733996731915,2.54683,3926.5,3925.7,0.7679]
[1733996732166,2.54668,3926.7,3925.7,0.7679]
[1733996733067,2.54674,3926.6,3925.7,0.7679]
[1733996734400,3.6494751,3926.6,3925.7,0.7679]
[1733996734614,3.6494751,3926.6,3925.7,2.09828589]
[1733996735230,3.36134,3926.6,3925.7,2.09828589]
[1733996735433,3.36107,3927.0,3926.0,1.33038589]
[1733996735597,1.87356171,3927.3,3926.1,0.7904]
[1733996735796,2.54654,3926.9,3926.1,0.7904]
[1733996736096,2.54658,3926.9,3926.1,0.7904]
[1733996737802,0.26532551,3927.1,3926.1,0.7904]
[1733996738131,2.54664,3926.8,3926.1,0.7904]
[1733996738325,2.5467,3926.7,3926.1,0.7904]
[1733996740094,2.54673,3926.6,3926.1,0.7904]
[1733996740295,2.54675,3926.6,3926.1,0.7904]
[1733996743833,2.5468,3926.5,3926.1,0.7904]
[1733996744034,2.54694,3926.3,3925.8,0.8326]
[1733996744844,2.88083,3926.5,3925.8,0.8326]
[1733996746210,0.33402,3926.5,3925.8,0.8326]
[1733996746411,1.05896171,3926.9,3926.0,1.33038589]
[1733996746738,2.54655,3926.9,3926.1,0.7793]
[1733996747663,0.26532551,3927.1,3926.4,0.7793]
[1733996747806,0.26532551,3927.1,3926.6,1.33038589]
[1733996748418,0.26532551,3927.1,3926.7,0.8294]
[1733996749038,0.26532551,3927.1,3926.9,1.33038589]
[1733996749351,0.26529217,3927.5,3926.9,1.33038589]
[1733996749536,0.89053877,3927.5,3926.9,1.33038589]
[1733996749931,1.05896171,3927.8,3927.0,0.8091]
[1733996750495,0.88146023,3927.7,3927.0,0.8091]
[1733996750780,1.05896171,3927.9,3927.0,0.8091]
[1733996751206,4.48623087,3927.9,3927.0,0.8091]
[1733996751393,0.88132916,3927.8,3927.0,0.8091]
[1733996751676,3.60490171,3927.9,3927.0,0.8091]
[1733996751885,3.42716692,3927.8,3927.0,0.8091]
[1733996752064,0.78384712,3927.8,3927.0,0.8091]
[1733996752244,2.54627,3927.4,3927.0,0.8091]
[1733996752457,2.54624,3927.4,3927.0,0.8091]
[1733996753886,2.54629,3927.3,3927.0,0.8091]
[1733996755676,1.05896171,3927.8,3927.0,0.8091]
[1733996755891,4.92677685,3927.9,3927.0,0.8091]
[1733996756074,0.88126326,3927.8,3927.0,0.8091]
[1733996756367,3.42721326,3927.8,3927.0,0.8091]
[1733996756568,2.54595,3927.8,3927.0,0.8091]
[1733996759174,2.54603,3927.7,3927.0,0.8091]
[1733996760638,2.54595,3927.8,3927.0,0.8091]
[1733996760835,2.54611,3927.6,3927.0,0.8091]
[1733996763980,2.54616,3927.5,3927.0,0.8091]
[1733996764979,2.54607,3927.7,3927.0,0.8091]
[1733996765279,2.54613,3927.6,3927.0,0.8091]
[1733996767481,0.26515078,3927.7,3927.0,0.8091]
[1733996767880,0.26515078,3927.7,3927.2,2.54634]
[1733996768085,0.989,3928.0,3927.3,0.7836]
[1733996768595,0.989,3928.0,3927.8,0.7836]
[1733996768791,0.989,3928.0,3927.9,3.29598]
[1733996769969,0.989,3928.0,3927.9,4.14251219]
[1733996770397,0.989,3928.0,3927.9,3.29598]
[1733996771580,0.989,3928.0,3927.9,6.29598]
[1733996771774,0.989,3928.0,3927.9,7.14134471]
[1733996772090,0.989,3928.0,3927.9,8.4094683]
[1733996772273,57.327655,3929.0,3928.9,3.36124]
[1733996772474,58.877655,3929.0,3928.9,6.17371174]
[1733996775894,60.427655,3929.0,3928.9,6.17371174]